[Event "SixDays Budapest January-IMA 2023"]
[Site "Budapest"]
[Date "2023.01.23"]
[Round "1.1"]
[White "Leszko, Bence"]
[Black "Ongut, Tamas Gunes"]
[Result "1/2-1/2"]
[ECO "B80"]
[WhiteElo "2298"]
[BlackElo "2340"]
[Annotator "TA"]
[PlyCount "39"]
[EventDate "2023.01.23"]
[EventType "tourn"]
[EventCountry "HUN"]
[SourceTitle "playchess.com"]
[Source "ChessBase"]
[SourceQuality "1"]
[TimeControl "5400+30"]

{[%evp 17,39,11,27,4,14,-15,0,-14,0,0,0,-5,0,0,-10,-17,6,0,0,0,7,0,0,-18]} 1. e4 {[%emt 0:05:02] Hecht,Hans Joachim} c5 {[%emt 0:00:10]} 2. Nf3 {[%emt 0:00:07]} e6 {[%emt 0:00:08]} 3. d4 {[%emt 0:00:14]} cxd4 {[%emt 0:00:09]} 4. Nxd4 {[%emt 0:00:04]} Nf6 {[%emt 0:00:09]} 5. Nc3 {[%emt 0:00:05]} d6 {[%emt 0:00:26]} 6. g3 {[%emt 0:01:00]} Nc6 {[%emt 0:13:17]} 7. Bg2 {[%emt 0:00:28]} Bd7 {[%emt 0:00:36]} 8. O-O {[%emt 0:00:18]} Be7 {[%emt 0:02:54]} 9. Be3 {[%emt 0:10:43] 9.Nce2 is the modern continuation.} O-O {[%emt 0:00:57]} 10. Nxc6 {[%emt 0:04:15] B80: Sicilian Scheveningen: 6 g3 and 6 Be3, including English Attack.} Bxc6 {[%emt 0:00:36] [#] The position is equal.} 11. h3 $146 {[%emt 0:00:35]} ({Predecessor:} 11. a4 a6 12. a5 Rc8 13. Re1 Qc7 14. Bb6 Qd7 15. Qd2 Bd8 16. Bd4 e5 17. Be3 Ng4 18. Bh3 f5 19. Bxg4 fxg4 20. Red1 Bc7 21. Nd5 Qf7 {0-1 Gershon,A (2543)-Pogorelov,R (2489) EU-ch 4th Istanbul 2003 (8)}) 11... Qa5 {[%emt 0:05:43]} 12. a3 {[%emt 0:01:48]} Rac8 {[%emt 0:04:05]} 13. Qd4 {[%emt 0:00:50]} a6 {[%emt 0:13:42]} 14. Rfd1 {[%emt 0:00:43]} Rfe8 {[%emt 0:04:59]} 15. Qd2 {[%emt 0:03:22]} Qc7 {[%emt 0:02:59]} 16. Bf4 {[%emt 0:04:54][%cal Rf4d6]} Qb6 {[%emt 0:05:57]} 17. Be3 {[%emt 0:00:48]} Qc7 {[%emt 0:00:06]} (17... Qxb2 $2 18. Rdb1 $18) 18. Bf4 {[%emt 0:00:04][%cal Rf4d6]} Qb6 {[%emt 0:00:05]} 19. Be3 {[%emt 0:00:30]} Qc7 {[%emt 0:00:06]} (19... Qxb2 $2 20. Rdb1 $18) 20. Bf4 {Not much happened in this game.   Weighted Error Value: White=0.08 (flawless) /Black=0.07 (flawless)} 1/2-1/2

[Event "SixDays Budapest January-IMA 2023"]
[Site "Budapest"]
[Date "2023.01.23"]
[Round "1.2"]
[White "Polyik, Peter"]
[Black "Ihnat, Marek"]
[Result "1/2-1/2"]
[ECO "D08"]
[WhiteElo "2323"]
[BlackElo "2138"]
[Annotator "TA"]
[PlyCount "75"]
[EventDate "2023.01.23"]
[EventType "tourn"]
[EventCountry "HUN"]
[SourceTitle "playchess.com"]
[Source "ChessBase"]
[SourceQuality "1"]
[TimeControl "5400+30"]

{[%evp 9,75,58,64,63,50,54,69,40,67,10,21,0,0,0,3,-16,3,3,11,-35,0,0,0,-43,-48,-125,-133,-138,-91,-118,-135,-360,-352,-362,-234,-229,-117,-123,-99,-99,-93,-94,-108,-145,-129,-147,-154,-145,-98,-98,-98,-98,-98,-98,-60,-43,-43,-47,-12,-12,-12,-12,-12,-12,-8,-8,-8,-12]} 1. d4 {[%emt 0:00:03]} d5 {[%emt 0:00:16]} 2. c4 {[%emt 0:00:12]} e5 {[%emt 0:00:35]} 3. dxe5 {[%emt 0:00:26]} Ne7 {[%emt 0:01:13]} 4. Nf3 {[%emt 0:04:38]} Nbc6 {[%emt 0:00:23]} 5. cxd5 {[%emt 0:09:10]} Qxd5 {[%emt 0:00:21]} 6. Qxd5 {[%emt 0:05:16] D08: Albin Counter Gambit.} ({Much worse is} 6. Nc3 Qxd1+ 7. Kxd1 Bg4 $11) 6... Nxd5 {[%emt 0:00:08]} 7. a3 $1 {[%emt 0:00:04] Against Ndb4} h6 {[%emt 0:00:44] [#]} 8. b4 $146 {[%emt 0:09:41] White is slightly better.} (8. e4 $5 {[%cal Re4d5]} Nb6 9. Bb5 $14) ({Predecessor:} 8. e4 Nb6 9. Be3 Bd7 10. b4 g5 11. b5 Na5 12. Nbd2 c5 13. bxc6 Nxc6 14. h4 {½-½ Can,E (2569)-Mazur,S (2416) EU-ch 21st Reykjavik 2021 (3)}) 8... g5 {[%emt 0:06:47]} 9. e4 {[%emt 0:12:37]} ({White should try} 9. h3 $14) 9... Nb6 $11 {[%emt 0:00:22]} 10. Bb5 {[%emt 0:02:18]} Bd7 {[%emt 0:02:29]} 11. Bb2 {[%emt 0:09:15][%cal Oe5e6]} Rg8 {[%emt 0:07:55]} 12. Nbd2 {[%emt 0:08:07]} Bg7 {[%emt 0:07:49]} (12... Nxe5 $5 13. Bxe5 Bxb5 $11) 13. Rc1 {[%emt 0:16:53]} O-O-O {[%emt 0:02:10]} 14. Nb3 {[%emt 0:10:16]} (14. Ba1 $11) 14... Rge8 {[%emt 0:26:58][%cal Rc6e5]} (14... g4 $5 {[%cal Rg4f3]} 15. Bxc6 Bxc6 $11) 15. Nc5 {[%emt 0:00:56]} Nxe5 {[%emt 0:04:24]} 16. Nxd7 {[%emt 0:00:52]} Nbxd7 {[%emt 0:04:14]} 17. Nd4 {[%emt 0:00:13]} (17. Ke2 $15) 17... Ng6 $17 {[%emt 0:09:17] A dynamic duo of knights.} 18. f3 {[%emt 0:02:35] [#]} f5 $1 {[%emt 0:04:43][%mdl 512]} 19. Rc2 {[%emt 0:02:25]} (19. O-O fxe4) 19... fxe4 {[%emt 0:01:59] aiming for ...a6.} 20. Nf5 $2 {[%emt 0:00:02]} (20. O-O $17) 20... exf3+ $19 {[%emt 0:00:47]} 21. Kf2 {[%emt 0:00:01]} fxg2 {[%emt 0:09:02]} 22. Kxg2 {[%emt 0:00:09]} Nh4+ {[%emt 0:02:18]} (22... Nf4+ $19 23. Kg3 Bxb2 24. Nd6+ Kb8 25. Nxe8 Be5 26. Bxd7 Rxd7) 23. Nxh4 $17 {[%emt 0:00:25]} Bxb2 {[%emt 0:00:02]} 24. Nf5 {[%emt 0:03:29] [#] Strongly threatening Nd6+.} Be5 {[%emt 0:01:34] Wards off Nd6+} ({Much less strong is} 24... Bxa3 25. Nd6+ (25. Nxh6 $2 {too greedy.} a6 $19) 25... Kb8 26. Nxe8 $16) 25. Nxh6 {[%emt 0:01:05]} Rf8 {[%emt 0:01:11] Dodges Nf7} 26. Re1 {[%emt 0:00:39] Black must now prevent Bxd7+.} Bd6 {[%emt 0:01:06]} 27. h3 {[%emt 0:01:07]} Ne5 {[%emt 0:00:51] And now ...Nf3 would win.} 28. Rf1 {[%emt 0:00:47] Dodges Nf3} Rxf1 {[%emt 0:02:19]} (28... c6 $142 29. Be2 Rxf1 30. Bxf1 Bc7) 29. Bxf1 {[%emt 0:00:05]} Rf8 {[%emt 0:00:29]} 30. Rf2 {[%emt 0:00:45]} Rxf2+ {[%emt 0:00:58]} 31. Kxf2 {[%emt 0:00:01][%mdl 4096] Endgame KBN-KBN} Kd7 {[%emt 0:00:56]} 32. Ke3 {[%emt 0:00:02]} Ke6 {[%emt 0:00:26]} 33. Ke4 {[%emt 0:00:03]} a5 {[%emt 0:00:58]} 34. bxa5 {[%emt 0:00:34] The position is equal.} Bxa3 {[%emt 0:00:17]} 35. a6 {[%emt 0:01:06]} bxa6 {[%emt 0:00:14]} 36. Bxa6 {[%emt 0:00:02]} Bd6 {[%emt 0:01:21]} 37. Bc8+ {[%emt 0:00:49]} Kf6 {[%emt 0:00:08]} 38. Ng4+ {[%emt 0:00:04] White happily takes the draw.   Weighted Error Value: White=0.23 (precise) /Black=0.23 (precise)} 1/2-1/2

[Event "SixDays Budapest January-IMA 2023"]
[Site "Budapest"]
[Date "2023.01.23"]
[Round "1.3"]
[White "Taragan, Uri"]
[Black "Orso, Miklos"]
[Result "1/2-1/2"]
[ECO "E73"]
[WhiteElo "1733"]
[BlackElo "2256"]
[Annotator "TA"]
[PlyCount "56"]
[EventDate "2023.01.23"]
[EventType "tourn"]
[EventCountry "HUN"]
[SourceTitle "playchess.com"]
[Source "ChessBase"]
[SourceQuality "1"]
[TimeControl "5400+30"]

{[%evp 12,56,45,41,48,23,46,31,36,36,31,48,61,64,83,63,118,109,114,110,93,91,143,142,148,152,118,50,83,50,66,70,74,73,60,54,95,10,74,26,28,0,45,-39,-24,-108,-94]} 1. d4 {[%emt 0:00:03]} Nf6 {[%emt 0:00:10]} 2. c4 {[%emt 0:00:05]} g6 {[%emt 0:00:11]} 3. Nc3 {[%emt 0:00:04]} Bg7 {[%emt 0:00:07]} 4. e4 {[%emt 0:00:06]} d6 {[%emt 0:00:06]} 5. Be2 {[%emt 0:00:06]} O-O {[%emt 0:00:53]} 6. Be3 {[%emt 0:00:12]} Nc6 {[%emt 0:00:58]} 7. d5 {[%emt 0:00:16]} Ne5 {[%emt 0:00:31] E73: King's Indian: Averbakh Variation without 6...c5.} 8. h3 {[%emt 0:00:19] 8.f4 gains popularity.} (8. f4 $5 {[%cal Rf4e5]} Ned7 9. g4 $14) 8... c6 {[%emt 0:02:51]} 9. Nf3 {[%emt 0:02:13]} Nxf3+ {[%emt 0:02:49] White is slightly better.} 10. Bxf3 {[%emt 0:00:12]} Nd7 {[%emt 0:08:44]} 11. Qd2 {[%emt 0:09:03] [#]} Ne5 $146 {[%emt 0:02:36]} ({Predecessor:} 11... a5 12. O-O a4 13. Rac1 Qa5 14. Rfd1 f5 15. exf5 Ne5 16. Be2 Bxf5 17. f4 Nf7 {1-0 Matlakov,M (2685)-Fedoseev,V (2678) PNWCC Online Masters WOO rapid 2020 (8)}) 12. Be2 {[%emt 0:00:18]} f5 {[%emt 0:00:09]} 13. O-O {[%emt 0:27:26]} Rf7 {[%emt 0:14:02]} (13... e6 $14) 14. f4 $16 {[%emt 0:26:05]} Nd7 {[%emt 0:00:31]} 15. dxc6 {[%emt 0:02:28]} bxc6 {[%emt 0:00:17]} 16. c5 {[%emt 0:00:15]} fxe4 {[%emt 0:08:39]} (16... Bxc3 $142 17. Qxc3 (17. bxc3 Nf6 $14) 17... Nf6) 17. Bc4 {[%emt 0:06:17]} Nf6 {[%emt 0:06:24]} (17... d5 $2 18. Nxd5 e6 19. Nc3) 18. Bxf7+ {[%emt 0:00:30]} Kxf7 {[%emt 0:00:03]} 19. Rad1 {[%emt 0:06:09]} (19. cxd6 $16 {Black must now prevent Rfd1.} exd6 20. Bd4) 19... d5 $14 {[%emt 0:00:59]} 20. Ne2 {[%emt 0:00:50]} e6 {[%emt 0:04:40]} 21. Nd4 {[%emt 0:02:45]} Qc7 {[%emt 0:01:46]} 22. b4 {[%emt 0:00:41] White is much more active.} Ba6 {[%emt 0:00:59] Inhibits a4.} 23. Rf2 {[%emt 0:00:45]} Bc4 {[%emt 0:03:16]} 24. a3 {[%emt 0:03:28]} ({White should play} 24. g4 $16) 24... a6 {[%emt 0:00:29]} (24... Nd7 $1 $11) 25. Rb1 {[%emt 0:02:15]} ({White should try} 25. g4 $16) 25... Re8 $11 {[%emt 0:02:13]} 26. a4 {[%emt 0:03:03]} Nd7 {[%emt 0:00:37]} (26... Bd3 $5 {[%cal Rd3b1]} 27. Rb3 Nd7 $11) 27. Ne2 {[%emt 0:06:56]} (27. b5 $14) 27... Kg8 {[%emt 0:01:13][%mdl 1024] Black has compensation. White is weak on the light squares} 28. Bd4 {[%emt 0:00:20]} (28. Rc1 $11) 28... e5 {[%emt 0:03:27] Weighted Error Value: White=0.26 (precise) /Black=0.19 (very precise)} 1/2-1/2

[Event "SixDays Budapest January-IMA 2023"]
[Site "Budapest"]
[Date "2023.01.23"]
[Round "1.4"]
[White "Szeberenyi, Adam"]
[Black "Baski, Barnabas"]
[Result "1-0"]
[ECO "E09"]
[WhiteElo "2331"]
[BlackElo "2188"]
[Annotator "TA"]
[PlyCount "89"]
[EventDate "2023.01.23"]
[EventType "tourn"]
[EventCountry "HUN"]
[SourceTitle "playchess.com"]
[Source "ChessBase"]
[SourceQuality "1"]
[TimeControl "5400+30"]

{[%evp 27,89,0,0,-60,-44,-63,-54,-89,-85,-90,-56,-163,-169,-156,-158,-158,-156,-180,-143,-142,-137,-304,-324,-301,-293,-312,-303,-350,-316,-350,-277,-349,-315,-327,-290,-235,-255,-352,-304,-310,-269,-259,0,0,0,0,0,0,0,0,71,68,430,415,427,426,416,423,420,325,325,323,295,307]} 1. Nf3 {[%emt 0:00:07]} Nf6 {[%emt 0:00:43]} 2. c4 {[%emt 0:00:53]} e6 {[%emt 0:00:20]} 3. g3 {[%emt 0:00:22]} d5 {[%emt 0:01:02]} 4. d4 {[%emt 0:00:59]} Bb4+ {[%emt 0:04:27]} 5. Bd2 {[%emt 0:00:17]} Be7 {[%emt 0:00:34]} 6. Bg2 {[%emt 0:00:19]} Nbd7 {[%emt 0:01:30]} 7. Qc2 {[%emt 0:05:20]} O-O {[%emt 0:03:29]} 8. O-O {[%emt 0:00:15]} c6 {[%emt 0:02:07]} 9. Bf4 {[%emt 0:00:37]} Nh5 {[%emt 0:05:47]} 10. Bc1 {[%emt 0:00:59]} Nhf6 {[%emt 0:01:06]} 11. Nbd2 {[%emt 0:06:48]} b6 {[%emt 0:04:16]} 12. Rd1 {[%emt 0:00:29]} Bb7 {[%emt 0:03:26]} 13. e4 {[%emt 0:00:30]} dxc4 {[%emt 0:07:17]} 14. Nxc4 {[%emt 0:03:33]} c5 {[%emt 0:10:29]} 15. d5 {[%emt 0:10:57] E09: Closed Catalan: Main Line: 7 Qc2 c6 8 Nbd2.} exd5 $15 {[%emt 0:10:37][%cal Be6d5,Bd5d4][%mdl 32]} 16. e5 {[%emt 0:17:30]} Ne8 {[%emt 0:07:20]} 17. Qf5 {[%emt 0:08:13] Black is slightly better.} g6 {[%emt 0:09:10]} (17... Nc7 {seems wilder.} 18. Ng5 g6 19. Qh3 Bxg5 20. Bxg5 Qxg5 21. Qxd7 Qd8) 18. Qh3 {[%emt 0:01:18][%cal Of3g5]} Ng7 {[%emt 0:03:32] [#]} 19. Ne3 $146 {[%emt 0:05:34]} ({White should try} 19. Ne1 $15) ({Predecessor:} 19. Bh6 Qc8 20. Ng5 Bxg5 21. Nd6 Nxe5 22. Nxc8 Bxc8 23. g4 Bxg4 24. Qg3 Bxh6 25. Rxd5 {0-1 Sargsyan,S (2628)-Alonso Rosell,A (2570) Wch Rapid Warsaw 2021 (3)}) 19... d4 $19 {[%emt 0:03:30]} 20. Ng4 {[%emt 0:01:47]} h5 {[%emt 0:03:49]} 21. Nh6+ {[%emt 0:07:35]} Kh7 {[%emt 0:00:34] ...Bxf3 would be deadly.} 22. Re1 {[%emt 0:05:28]} Bd5 {[%emt 0:10:10]} 23. g4 {[%emt 0:02:07]} Be6 {[%emt 0:00:39]} 24. Qg3 $2 {[%emt 0:02:12]} (24. Bf1 $17 {is a better defense.}) 24... hxg4 {[%emt 0:02:56]} 25. Nxg4 {[%emt 0:01:10] [#]} Nh5 $1 {[%emt 0:00:11]} 26. Qh3 {[%emt 0:00:05]} Rh8 {[%emt 0:00:46]} 27. Nd2 {[%emt 0:07:44]} Rb8 {[%emt 0:01:56]} 28. Qf3 {[%emt 0:04:02]} Kg7 {[%emt 0:00:17]} 29. b3 {[%emt 0:00:44]} b5 {[%emt 0:00:23]} 30. Bb2 {[%emt 0:00:22]} Nb6 {[%emt 0:00:45]} 31. Ne4 {[%emt 0:01:15]} Nd5 {[%emt 0:00:44] Prevents Ngf6.} 32. Rac1 {[%emt 0:02:21]} Rc8 {[%emt 0:00:20]} ({Avoid the trap} 32... Nhf4 $2 33. Ngf6 Nxg2 34. Qxg2 $19) 33. Bf1 {[%emt 0:01:03]} Qd7 {[%emt 0:01:02]} 34. h3 {[%emt 0:01:06]} Bf5 $2 {[%emt 0:01:07]} (34... Nhf4 $19 {...Rh4 is the strong threat.} 35. Nef6 Bxg4 36. hxg4 Bxf6 37. exf6+ Kg8) 35. e6 $1 $11 {[%emt 0:01:50] Some like it hot} Bxe6 {[%emt 0:00:50] And now ...f6 would win.} (35... fxe6 {with more complications.} 36. Nxc5 Bxg4 37. hxg4 Bxc5 38. gxh5 Bb6) 36. Nxc5 $1 {[%emt 0:00:11][%mdl 64] Remove Defender, Decoy} Bxc5 {[%emt 0:00:23]} 37. Rxc5 {[%emt 0:00:03][%mdl 64] Remove Defender} Rxc5 {[%emt 0:00:46]} 38. Bxd4+ {[%emt 0:00:04]} Kg8 {[%emt 0:00:23]} (38... Nhf6 $2 39. Nxf6 (39. Bxc5 Bxg4 40. hxg4 Qc7 $17) 39... Qd8 40. Nxd5+ Kh6 41. Qf4+ Qg5+ 42. Qxg5+ Kxg5 43. Bxc5 $18) (38... f6 $11 39. Bxc5 a6) 39. Bxc5 $16 {[%emt 0:00:23] White is much more active. This pair of bishops is nice.} Nhf4 $2 {[%emt 0:00:31][%mdl 8192] [#]} (39... a6 $14) 40. Qxf4 $3 $18 {[%emt 0:01:54][%mdl 576] Deflection} Nxf4 {[%emt 0:00:19]} 41. Nf6+ {[%emt 0:00:02]} Kg7 {[%emt 0:00:22]} 42. Nxd7 {[%emt 0:00:04] Threatens to win with Bd4+.} Nxh3+ {[%emt 0:00:53]} 43. Bxh3 {[%emt 0:00:10]} Rxh3 {[%emt 0:00:06]} 44. Bd4+ {[%emt 0:00:36]} Kh6 {[%emt 0:00:29]} 45. Nf6 {[%emt 0:00:36] What a bad dream for Black. Beautiful play by Szeberenyi!   Weighted Error Value: White=0.30/Black=0.41} 1-0

[Event "SixDays Budapest January-IMA 2023"]
[Site "Budapest"]
[Date "2023.01.23"]
[Round "1.5"]
[White "Heimisson, Hilmir Freyr"]
[Black "Magold, Filip"]
[Result "1-0"]
[ECO "B22"]
[WhiteElo "2321"]
[BlackElo "2230"]
[Annotator "TA"]
[PlyCount "109"]
[EventDate "2023.01.23"]
[EventType "tourn"]
[EventCountry "HUN"]
[SourceTitle "playchess.com"]
[Source "ChessBase"]
[SourceQuality "1"]
[TimeControl "5400+30"]

{[%evp 13,109,4,7,12,0,0,10,10,18,2,14,0,9,0,0,-23,-8,-32,-6,-48,0,0,-6,0,20,0,0,-26,-16,-28,0,0,0,0,0,0,0,0,50,-12,-8,-14,-8,0,0,0,0,0,0,-6,6,-62,0,0,131,79,85,70,75,77,91,24,24,28,25,-8,-8,-8,-8,-8,321,324,329,305,330,328,323,301,334,308,360,345,351,337,605,595,550,539,704,569,704,697,683,682,670,660,29971,29969]} 1. e4 {[%emt 0:00:18][%cal Be2e4,Be4e5][%mdl 32]} c5 {[%emt 0:00:07]} 2. c3 {[%emt 0:00:49]} Nf6 {[%emt 0:00:47]} 3. e5 {[%emt 0:00:09]} Nd5 {[%emt 0:00:06]} 4. Nf3 {[%emt 0:00:07]} Nc6 {[%emt 0:00:43]} 5. Bc4 {[%emt 0:00:32]} Nb6 {[%emt 0:01:02]} 6. Bb3 {[%emt 0:00:15]} d5 {[%emt 0:00:07]} 7. exd6 {[%emt 0:00:29]} Qxd6 {[%emt 0:00:06]} 8. O-O {[%emt 0:02:19] B22: Sicilian: 2 c3.} Be6 {[%emt 0:03:02]} 9. Bxe6 {[%emt 0:00:46]} Qxe6 {[%emt 0:00:05]} 10. a4 {[%emt 0:00:41][%cal Ba2a4,Ba4a5,Ba5a6][%mdl 32] The position is equal.} Qd7 {[%emt 0:01:58]} 11. a5 {[%emt 0:00:31]} Nd5 {[%emt 0:00:27]} 12. a6 {[%emt 0:02:54]} b5 {[%emt 0:00:46]} 13. d4 {[%emt 0:14:26]} e6 {[%emt 0:11:02]} 14. Ne5 {[%emt 0:07:45] [#]} Qc7 $146 {[%emt 0:10:38]} ({Predecessor:} 14... Nxe5 15. dxe5 Qc6 16. Re1 Rd8 17. Qg4 h5 18. Qh3 Be7 19. Qf3 h4 20. h3 c4 {1-0 Tkachiev,V (2664)-Carlsen,M (2775) Moscow Tal Memorial Blitz 2008 (15)}) 15. Qe2 {[%emt 0:14:37]} Rb8 {[%emt 0:07:34]} (15... Nxe5 {simplifies} 16. Qxe5 Qxe5 17. dxe5 c4) 16. Rd1 {[%emt 0:07:12]} Be7 {[%emt 0:13:53]} 17. Nxc6 {[%emt 0:06:12]} Qxc6 {[%emt 0:01:29]} 18. dxc5 {[%emt 0:00:37]} Qxc5 {[%emt 0:03:24]} 19. Nd2 {[%emt 0:02:36]} (19. Na3 $5 {[%cal Ra3b5]}) 19... O-O {[%emt 0:02:19]} 20. Ne4 {[%emt 0:02:52]} Qc6 {[%emt 0:03:36]} 21. Bg5 {[%emt 0:02:53]} f6 {[%emt 0:06:48]} 22. Be3 {[%emt 0:05:21]} Nxe3 {[%emt 0:00:21]} 23. Qxe3 {[%emt 0:00:23]} Rb6 {[%emt 0:00:09]} 24. h4 {[%emt 0:06:17]} h6 {[%emt 0:03:16]} 25. b4 {[%emt 0:04:05]} Rc8 {[%emt 0:09:07]} (25... f5 $11 26. Nc5 f4) 26. Rd3 {[%emt 0:05:48]} (26. Nd6 $1 $14 Bxd6 27. Qxe6+ Kh8 28. Rxd6 Qxc3 {[%mdl 64] Double Attack} 29. Rad1 Rxd6 30. Qxd6) 26... Kh7 $11 {[%emt 0:09:16]} ({But not} 26... Rxa6 27. Rxa6 Qxa6 28. Rd7 $16) 27. Ng3 {[%emt 0:03:40]} Qe8 {[%emt 0:04:01]} 28. Ne2 {[%emt 0:06:33]} f5 {[%emt 0:02:59]} 29. g3 {[%emt 0:01:24]} Bf6 {[%emt 0:01:24]} 30. Nf4 {[%emt 0:01:12]} Qf7 {[%emt 0:03:19]} 31. Re1 {[%emt 0:01:01]} Rcc6 {[%emt 0:00:26]} 32. Red1 {[%emt 0:00:32]} (32. Qf3 $11) 32... Rc7 {[%emt 0:01:35]} ({Black should play} 32... e5 $15 33. Ng2 Qg6) 33. Rd6 {[%emt 0:01:04]} e5 {[%emt 0:00:30]} (33... Rxc3 $11 {keeps the balance.} 34. Qxe6 Qxe6 35. Nxe6 Rcc6 36. Nf8+ Kg8 37. Rxc6 Rxc6) 34. Ne6 {[%emt 0:00:29]} ({White should try} 34. Rxb6 {[%cal Of4d5] And now Nd5! would win.} exf4 35. Rxf6 Qxf6 36. Qxf4 Rxc3 37. Rd6) 34... Rcc6 $16 {[%emt 0:00:30]} 35. Rxc6 {[%emt 0:00:19]} Rxc6 {[%emt 0:00:01]} 36. Nc5 $36 {[%emt 0:00:06][%mdl 2048] [#] Black must now prevent Rd7. White has strong initiative.} Qg6 {[%emt 0:00:52]} 37. Rd7 {[%emt 0:01:09] Repels Be7} (37. Kf1 $16) 37... f4 $11 {[%emt 0:00:27]} 38. Qf3 {[%emt 0:00:26]} (38. Qd3 {simplifies} Qxd3 39. Rxd3 Be7 40. Ne4) 38... Bxh4 {[%emt 0:00:37][%cal Rf4g3]} 39. Rxa7 {[%emt 0:00:17]} (39. Kg2 $5) 39... fxg3 {[%emt 0:00:35]} 40. fxg3 {[%emt 0:00:29] aiming for Qe4.} Bxg3 {[%emt 0:00:32] Hoping for ...Rf6.} 41. Qe4 {[%emt 0:00:35] Some like it hot. Active counter play!} h5 $2 {[%emt 0:00:29][%mdl 8192] [#] A mistake that costs the game.} (41... Qxe4 $11 {and Black stays safe.} 42. Nxe4 Be1) 42. Qxg6+ $1 $18 {[%emt 0:00:37]} Rxg6 {[%emt 0:00:02][%mdl 4096] Endgame KRB-KRN} 43. Rb7 {[%emt 0:00:37] Strongly threatening a7.} e4 {[%emt 0:00:52]} 44. a7 {[%emt 0:00:25]} ({Not} 44. Rxb5 Bb8+ 45. Kf1 Ba7 $16) ({And not} 44. Nxe4 Bh4+ 45. Kf1 Rxa6 $11) 44... Bb8+ {[%emt 0:00:37]} 45. Kf2 {[%emt 0:00:12]} Rf6+ {[%emt 0:00:30]} 46. Ke2 {[%emt 0:00:38]} Bxa7 {[%emt 0:00:07]} 47. Rxa7 {[%emt 0:00:01] KRN-KR} h4 {[%emt 0:00:35]} 48. Nxe4 {[%emt 0:00:27]} Rg6 {[%emt 0:00:42]} (48... Rf5 49. Rd7 Kg6) 49. Kf3 {[%emt 0:00:53]} Rg1 {[%emt 0:00:37]} 50. Kf2 {[%emt 0:00:45]} Rg6 {[%emt 0:00:32]} 51. Ra1 {[%emt 0:00:26]} Kh6 {[%emt 0:00:19]} 52. Kf3 {[%emt 0:00:43]} Re6 {[%emt 0:00:36]} 53. Rg1 {[%emt 0:00:24]} Re5 {[%emt 0:00:29]} 54. Kf4 {[%emt 0:00:13]} Rh5 {[%emt 0:00:30]} 55. Rg5 {[%emt 0:00:43] Weighted Error Value: White=0.14 (very precise) /Black=0.31} 1-0